fUSD/lending_fUSD_20241004
["ID","MTS","AMOUNT","RATE_DAILY","PERIOD"]
[339833740,1728052299995,-500.0,0.00039178,120]
[339833741,1728052300004,-500.0,0.00039178,120]
[339833742,1728052300013,-500.0,0.00039178,120]
[339833743,1728052300022,-500.0,0.00039178,30]
[339833744,1728052300031,-649.16,0.00039178,120]
[339833745,1728052300040,-500.0,0.00039178,120]
[339833746,1728052300049,-500.0,0.00039178,5]
[339833747,1728052300058,-500.0,0.00039178,120]
[339833748,1728052300069,-500.0,0.00039178,120]
[339833749,1728052300079,-741.25,0.00039178,120]
[339833750,1728052300088,-500.0,0.00039178,120]
[339833751,1728052300098,-983.7,0.00039178,14]
[339833752,1728052300108,-500.0,0.00039178,120]
[339833753,1728052300117,-500.0,0.00039178,120]
[339833754,1728052300126,-500.0,0.00039178,120]
[339833755,1728052300136,-879.29,0.00039178,120]
[339833756,1728052300145,-500.0,0.00039178,120]
[339833757,1728052300155,-580.47244197,0.00039178,120]
[339833758,1728052300165,-696.42,0.00039178,120]
[339833759,1728052300175,-500.0,0.00039178,120]
[339833760,1728052300184,-1000.0,0.00039178,120]
[339833761,1728052300194,-500.0,0.00039178,120]
[339833762,1728052300203,-500.0,0.00039178,120]
[339833763,1728052300213,-1063.83,0.00039178,120]
[339833764,1728052300222,-727.52,0.00039178,120]
[339833765,1728052300231,-500.0,0.00039178,120]
[339833766,1728052300241,-500.0,0.00039178,120]
[339833767,1728052300252,-500.0,0.00039178,120]
[339833768,1728052300261,-500.0,0.00039178,120]
[339833769,1728052300270,-500.0,0.00039178,120]
[339833770,1728052300280,-500.0,0.00039178,120]
[339833771,1728052300293,-500.0,0.00039178,120]
[339833772,1728052300302,-500.0,0.00039178,120]
[339833773,1728052300311,-500.0,0.00039178,120]
[339833774,1728052300320,-742.02,0.00039178,120]
[339833775,1728052300329,-500.0,0.00039178,120]
[339833776,1728052300338,-800.71,0.00039178,120]
[339833777,1728052300348,-531.4,0.00039178,120]
[339833778,1728052300357,-500.0,0.00039178,120]
[339833779,1728052300369,-500.0,0.00039178,120]
[339833780,1728052300380,-500.0,0.00039178,120]
[339833781,1728052300389,-500.0,0.00039178,120]
[339833782,1728052300398,-500.0,0.00039178,120]
[339833783,1728052300410,-607.06,0.00039178,120]
[339833784,1728052300420,-542.93,0.00039178,120]
[339833785,1728052300429,-500.0,0.00039178,120]
[339833786,1728052300439,-572.2,0.00039178,120]
[339833787,1728052300449,-500.0,0.00039178,120]
[339833788,1728052300460,-1926.06,0.00039178,120]
[339833789,1728052300470,-585.49772986,0.00039178,120]
[339833790,1728052300479,-977.76,0.00039178,120]
[339833791,1728052300489,-500.0,0.00039178,120]
[339833792,1728052300501,-500.0,0.00039178,120]
[339833793,1728052300510,-500.0,0.00039178,120]
[339833794,1728052300519,-500.0,0.00039178,120]
[339833795,1728052300528,-500.0,0.00039178,120]
[339833796,1728052300537,-534.56462551,0.00039178,120]
[339833797,1728052300547,-500.0,0.00039178,120]
[339833798,1728052300556,-500.0,0.00039178,120]
[339833799,1728052300566,-1025.77,0.00039178,120]
[339833800,1728052300576,-500.0,0.00039178,120]
[339833801,1728052300585,-500.0,0.00039178,120]
[339833802,1728052300595,-500.0,0.00039178,120]
[339833803,1728052300604,-500.0,0.00039178,120]
[339833804,1728052300613,-500.0,0.00039178,120]
[339833805,1728052300623,-500.0,0.00039178,120]
[339833806,1728052300632,-500.0,0.00039178,120]
[339833807,1728052300643,-500.0,0.00039178,120]
[339833808,1728052300653,-500.0,0.00039178,120]
[339833809,1728052300662,-500.0,0.00039178,120]
[339833810,1728052300671,-500.0,0.00039178,120]
[339833811,1728052300681,-876.92,0.00039178,120]
[339833812,1728052300690,-500.0,0.00039178,120]
[339833813,1728052300700,-634.02,0.00039178,120]
[339833814,1728052300709,-274.2880318,0.00039178,120]
[339833815,1728052300719,-500.0,0.00039178,120]
[339833816,1728052300728,-500.0,0.00039178,120]
[339833817,1728052300738,-500.0,0.00039178,120]
[339833818,1728052300749,-586.53,0.00039178,120]
[339833819,1728052300759,-500.0,0.00039178,120]
[339833820,1728052300768,-500.0,0.00039178,120]
[339833821,1728052300778,-500.0,0.00039178,120]
[339833822,1728052300788,-500.0,0.00039178,120]
[339833823,1728052300798,-500.0,0.00039178,120]
[339833824,1728052300809,-500.0,0.00039178,120]
[339833825,1728052300819,-500.0,0.00039178,120]
[339833826,1728052300828,-500.0,0.00039178,120]
[339833827,1728052300838,-500.0,0.00039178,120]
[339833828,1728052300848,-500.0,0.00039178,2]
[339833829,1728052300858,-500.0,0.00039178,120]
[339833830,1728052300870,-500.0,0.00039178,120]
[339833831,1728052300880,-500.0,0.00039178,120]
[339833832,1728052300890,-500.0,0.00039178,120]
[339833833,1728052300899,-500.0,0.00039178,120]
[339833834,1728052300908,-501.14705873,0.00039178,120]
[339833835,1728052300918,-500.0,0.00039178,120]
[339833836,1728052300927,-500.0,0.00039178,120]
[339833837,1728052300937,-500.0,0.00039178,120]
[339833838,1728052300947,-500.0,0.00039178,2]
[339833839,1728052300956,-500.0,0.00039178,120]
[339833840,1728052300966,-354.7338113,0.00039178,120]
[339833841,1728052300975,-500.0,0.00039178,120]
[339833842,1728052300985,-258.79128969,0.00039178,120]
[339833843,1728052300997,-500.0,0.00039178,120]
[339833844,1728052301007,-500.0,0.00039178,2]
[339833845,1728052301016,-500.0,0.00039178,120]
[339833846,1728052301026,-500.0,0.00039178,120]
[339833847,1728052301035,-500.0,0.00039178,120]
[339833848,1728052301045,-500.0,0.00039178,120]
[339833849,1728052301055,-500.0,0.00039178,120]
[339833850,1728052301065,-500.0,0.00039178,120]
[339833851,1728052301074,-170.12377437,0.00039178,120]
[339833852,1728052301084,-500.0,0.00039178,120]
[339833853,1728052301093,-500.0,0.00039178,120]
[339833854,1728052301103,-500.0,0.00039178,120]
[339833855,1728052301112,-500.0,0.00039178,120]
[339833856,1728052301122,-997.26,0.00039178,120]
[339833857,1728052301131,-186.15442055,0.00039178,120]
[339833858,1728052301140,-500.0,0.00039178,120]
[339833859,1728052301150,-500.0,0.00039178,120]
[339833860,1728052301159,-500.0,0.00039178,120]
[339833861,1728052301168,-1000.0,0.00039178,120]
[339833862,1728052301178,-500.0,0.00039178,120]
[339833863,1728052301188,-500.0,0.00039178,120]
[339833864,1728052301198,-500.0,0.00039178,120]
[339833865,1728052301207,-649.23,0.00039178,120]
[339833866,1728052301217,-500.0,0.00039178,120]
[339833867,1728052301226,-1071.81,0.00039178,120]
[339833868,1728052301236,-500.0,0.00039178,120]
[339833869,1728052301249,-500.0,0.00039178,120]
[339833870,1728052301261,-500.0,0.00039178,120]
[339833871,1728052301272,-500.0,0.00039178,120]
[339833872,1728052301282,-500.0,0.00039178,120]
[339833873,1728052301299,-812.57,0.00039178,120]
[339833874,1728052301310,-500.0,0.00039178,120]
[339833875,1728052301321,-500.0,0.00039178,120]
[339833876,1728052301331,-546.63478638,0.00039178,120]
[339833877,1728052301342,-500.0,0.00039178,120]
[339833878,1728052301353,-500.0,0.00039178,120]
[339833879,1728052301363,-638.93,0.00039178,120]
[339833880,1728052301375,-500.0,0.00039178,120]
[339833881,1728052301385,-605.12,0.00039178,120]
[339833882,1728052301398,-500.0,0.00039178,120]
[339833883,1728052301579,-500.0,0.00039178,120]
[339833884,1728052301593,-500.0,0.00039178,120]
[339833885,1728052301604,-500.0,0.00039178,120]
[339833886,1728052301614,-500.0,0.00039178,2]
[339833887,1728052301625,-500.0,0.00039178,120]
[339833888,1728052301635,-517.57,0.00039178,120]
[339833889,1728052301645,-501.38999485,0.00039178,120]
[339833890,1728052301656,-1187.88,0.00039178,120]
[339833891,1728052301667,-500.0,0.00039178,120]
[339833892,1728052301677,-500.0,0.00039178,120]
[339833893,1728052301688,-500.0,0.00039178,120]
[339833894,1728052301698,-500.0,0.00039178,120]
[339833895,1728052301708,-500.0,0.00039178,120]
[339833896,1728052301719,-1345.49,0.00039178,120]
[339833897,1728052301730,-500.0,0.00039178,120]
[339833898,1728052301740,-500.0,0.00039178,120]
[339833899,1728052301751,-500.0,0.00039178,120]
[339833900,1728052301762,-500.0,0.00039178,120]
[339833901,1728052301773,-500.0,0.00039178,120]
[339833902,1728052301783,-500.0,0.00039178,120]
[339833903,1728052301793,-500.0,0.00039178,120]
[339833904,1728052301803,-500.0,0.00039178,120]
[339833905,1728052301812,-500.0,0.00039178,120]
[339833906,1728052301822,-504.55535299,0.00039178,120]
[339833907,1728052301832,-500.0,0.00039178,120]
[339833908,1728052301842,-500.0,0.00039178,120]
[339833909,1728052301851,-500.0,0.00039178,120]
[339833910,1728052301861,-500.0,0.00039178,120]
[339833911,1728052301870,-500.0,0.00039178,120]
[339833912,1728052301880,-1287.48,0.00039178,120]
[339833913,1728052301889,-622.3,0.00039178,120]
[339833914,1728052301899,-500.0,0.00039178,120]
[339833915,1728052301909,-500.0,0.00039178,120]
[339833916,1728052301918,-500.0,0.00039178,120]
[339833917,1728052301928,-500.0,0.00039178,120]
[339833918,1728052301938,-500.0,0.00039178,120]
[339833919,1728052301948,-599.91,0.00039178,120]
[339833920,1728052301958,-500.0,0.00039178,120]
[339833921,1728052301968,-500.0,0.00039178,30]
[339833922,1728052301978,-500.0,0.00039178,120]
[339833923,1728052301988,-500.0,0.00039178,120]
[339833924,1728052302002,-150.0,0.00039178,120]
[339833925,1728052302012,-916.31,0.00039178,120]
[339833926,1728052302022,-500.0,0.00039178,120]
[339833927,1728052302031,-1282.57,0.00039178,120]
[339833928,1728052302041,-594.74,0.00039178,120]
[339833929,1728052302057,-500.0,0.00039178,120]
[339833930,1728052302066,-500.0,0.00039178,120]
[339833931,1728052302076,-500.0,0.00039178,120]
[339833932,1728052302085,-500.0,0.00039178,120]
[339833933,1728052302095,-500.0,0.00039178,120]
[339833934,1728052302104,-500.0,0.00039178,120]
[339833935,1728052302113,-500.0,0.00039178,120]
[339833936,1728052302123,-500.0,0.00039178,120]
[339833937,1728052302132,-500.0,0.00039178,120]
[339833938,1728052302142,-500.0,0.00039178,120]
[339833939,1728052302151,-500.0,0.00039178,120]
[339833940,1728052302161,-500.0,0.00039178,120]
[339833941,1728052302170,-500.0,0.00039178,120]
[339833942,1728052302179,-614.65,0.00039178,120]
[339833943,1728052302188,-500.0,0.00039178,120]
[339833944,1728052302198,-500.0,0.00039178,120]
[339833945,1728052302207,-500.0,0.00039178,120]
[339833946,1728052302217,-569.04,0.00039178,120]
[339833947,1728052302226,-500.0,0.00039178,120]
[339833948,1728052302236,-500.0,0.00039178,120]
[339833949,1728052302245,-500.0,0.00039178,120]
[339833950,1728052302259,-500.0,0.00039178,120]
[339833951,1728052302268,-500.0,0.00039178,120]
[339833952,1728052302278,-896.69,0.00039178,120]
[339833953,1728052302291,-1266.27,0.00039178,7]
[339833954,1728052302302,-500.0,0.00039178,120]
[339833955,1728052302312,-500.0,0.00039178,120]
[339833956,1728052302321,-500.0,0.00039178,120]
[339833957,1728052302330,-500.0,0.00039178,120]
[339833958,1728052302339,-500.0,0.00039178,120]
[339833959,1728052302348,-500.0,0.00039178,120]
[339833960,1728052302358,-547.54,0.00039178,120]
[339833961,1728052302367,-948.94,0.00039178,120]
[339833962,1728052302376,-500.0,0.00039178,120]
[339833963,1728052302386,-500.0,0.00039178,120]
[339833964,1728052302396,-500.0,0.00039178,120]
[339833965,1728052302406,-500.0,0.00039178,120]
[339833966,1728052302415,-500.0,0.00039178,120]
[339833967,1728052302425,-500.0,0.00039178,120]
[339833968,1728052302434,-500.0,0.00039178,120]
[339833969,1728052302444,-648.11226326,0.00039178,120]
[339833970,1728052302454,-500.0,0.00039178,120]
[339833971,1728052302464,-500.0,0.00039178,120]
[339833972,1728052302474,-763.53,0.00039178,120]
[339833973,1728052302484,-500.0,0.00039178,120]
[339833974,1728052302493,-500.0,0.00039178,120]
[339833975,1728052302507,-1391.13,0.00039178,120]
[339833976,1728052302519,-500.0,0.00039178,120]
[339833977,1728052302528,-500.0,0.00039178,120]
[339833978,1728052302538,-500.0,0.00039178,120]
[339833979,1728052302548,-1983.22,0.00039178,120]
[339833980,1728052302558,-500.0,0.00039178,120]
[339833981,1728052302567,-500.0,0.00039178,120]
[339833982,1728052302577,-500.0,0.00039178,120]
[339833983,1728052302586,-906.8,0.00039178,120]
[339833984,1728052302596,-604.79,0.00039178,120]
[339833985,1728052302606,-639.5,0.00039178,120]
[339833986,1728052302615,-500.0,0.00039178,120]
[339833987,1728052302624,-500.0,0.00039178,120]
[339833988,1728052302634,-500.0,0.00039178,120]
[339833989,1728052302644,-500.0,0.00039178,120]
[339833990,1728052302654,-500.0,0.00039178,120]
[339833991,1728052302663,-500.0,0.00039178,120]
[339833992,1728052302673,-500.0,0.00039178,120]
[339833993,1728052302682,-542.48,0.00039178,120]
[339833994,1728052302692,-693.45,0.00039178,120]
[339833995,1728052302701,-500.0,0.00039178,120]
[339833996,1728052302711,-500.0,0.00039178,120]
[339833997,1728052302721,-500.0,0.00039178,120]
[339833998,1728052302730,-500.0,0.00039178,120]
[339833999,1728052302740,-500.0,0.00039178,120]
[339834000,1728052302752,-2885.95,0.00039178,120]
[339834001,1728052302761,-500.0,0.00039178,120]
[339834002,1728052302771,-500.0,0.00039178,120]
[339834003,1728052302780,-1396.61,0.00039178,120]
[339834004,1728052302789,-2412.58,0.00039178,120]
[339834005,1728052302798,-581.68,0.00039178,120]
[339834006,1728052302807,-500.0,0.00039178,120]
[339834007,1728052302817,-714.4,0.00039178,120]
[339834008,1728052302826,-527.07,0.00039178,120]
[339834009,1728052302836,-500.0,0.00039178,120]
[339834010,1728052302845,-500.0,0.00039178,120]
[339834011,1728052302854,-500.0,0.00039178,120]
[339834012,1728052302863,-500.0,0.00039178,120]
[339834013,1728052302872,-500.0,0.00039178,120]
[339834014,1728052302882,-1592.74,0.00039178,21]
[339834015,1728052302891,-500.0,0.00039178,120]
[339834016,1728052302900,-500.0,0.00039178,120]
[339834017,1728052302910,-500.0,0.00039178,120]
[339834018,1728052302920,-500.0,0.00039178,120]
[339834019,1728052302930,-500.0,0.00039178,120]
[339834020,1728052302939,-500.0,0.00039178,120]
[339834021,1728052302948,-500.0,0.00039178,120]
[339834022,1728052302958,-923.99,0.00039178,120]
[339834023,1728052302967,-500.0,0.00039178,120]
[339834024,1728052302976,-500.0,0.00039178,120]
[339834025,1728052302986,-500.0,0.00039178,120]
[339834026,1728052302997,-1453.68,0.00039178,120]
[339834027,1728052303008,-1372.86,0.00039178,120]
[339834028,1728052303018,-500.0,0.00039178,120]
[339834029,1728052303027,-500.0,0.00039178,120]
[339834030,1728052303037,-744.3,0.00039178,120]
[339834031,1728052303046,-500.0,0.00039178,120]
[339834032,1728052303056,-1283.59,0.00039178,120]
[339834033,1728052303065,-500.0,0.00039178,120]
[339834034,1728052303075,-500.0,0.00039178,120]
[339834035,1728052303084,-500.0,0.00039178,120]
[339834036,1728052303093,-599.92273615,0.00039178,120]
[339834037,1728052303103,-500.0,0.00039178,120]
[339834038,1728052303113,-500.0,0.00039178,120]
[339834039,1728052303122,-500.0,0.00039178,120]
[339834040,1728052303133,-500.0,0.00039178,120]
[339834041,1728052303142,-893.06,0.00039178,120]
[339834042,1728052303152,-947.29,0.00039178,120]
[339834043,1728052303161,-500.0,0.00039178,120]
[339834044,1728052303171,-500.0,0.00039178,120]
[339834045,1728052303180,-500.0,0.00039178,120]
[339834046,1728052303190,-500.0,0.00039178,120]
[339834047,1728052303199,-500.0,0.00039178,120]
[339834048,1728052303208,-1424.36,0.00039178,120]
[339834049,1728052303218,-500.0,0.00039178,120]
[339834050,1728052303227,-1090.27,0.00039178,120]
[339834051,1728052303238,-500.0,0.00039178,120]
[339834052,1728052303247,-500.0,0.00039178,120]
[339834053,1728052303261,-827.5,0.00039178,120]
[339834054,1728052303270,-647.57,0.00039178,120]
[339834055,1728052303280,-379.45019061,0.00039178,120]
[339834056,1728052303289,-500.0,0.00039178,120]
[339834057,1728052303301,-500.0,0.00039178,120]
[339834058,1728052303310,-1055.93,0.00039178,120]
[339834059,1728052303320,-500.0,0.00039178,120]
[339834060,1728052303329,-500.0,0.00039178,120]
[339834061,1728052303340,-1136.31,0.00039178,120]
[339834062,1728052303350,-500.0,0.00039178,120]
[339834063,1728052303360,-2611.45,0.00039178,120]
[339834064,1728052303369,-578.92,0.00039178,120]
[339834065,1728052303380,-500.0,0.00039178,120]
[339834066,1728052303389,-2091.62,0.00039178,120]
[339834067,1728052303399,-661.05,0.00039178,120]
[339834068,1728052303409,-500.0,0.00039178,120]
[339834069,1728052303419,-500.0,0.00039178,120]
[339834070,1728052303428,-1075.43,0.00039178,120]
[339834071,1728052303438,-1153.94,0.00039178,120]
[339834072,1728052303447,-500.0,0.00039178,120]
[339834073,1728052303457,-500.0,0.00039178,120]
[339834074,1728052303466,-500.0,0.00039178,120]
[339834075,1728052303476,-500.0,0.00039178,120]
[339834076,1728052303485,-1439.25,0.00039178,120]
[339834077,1728052303495,-500.0,0.00039178,120]
[339834078,1728052303509,-3944.47,0.00039178,120]
[339834079,1728052303519,-500.0,0.00039178,120]
[339834080,1728052303528,-779.04,0.00039178,120]
[339834081,1728052303537,-576.6,0.00039178,120]
[339834082,1728052303547,-4476.87,0.00039178,120]
[339834083,1728052303556,-500.0,0.00039178,120]
[339834084,1728052303566,-657.6,0.00039178,120]
[339834085,1728052303575,-774.23,0.00039178,120]
[339834086,1728052303585,-500.0,0.00039178,120]
[339834087,1728052303594,-500.0,0.00039178,120]
[339834088,1728052303605,-670.06,0.00039178,120]
[339834089,1728052303614,-500.0,0.00039178,120]
[339834090,1728052303624,-500.0,0.00039178,120]
[339834091,1728052303633,-500.0,0.00039178,120]
[339834092,1728052303642,-500.0,0.00039178,120]
[339834093,1728052303651,-500.0,0.00039178,120]
[339834094,1728052303660,-4369.58,0.00039178,120]
[339834095,1728052303670,-500.0,0.00039178,120]
[339834096,1728052303679,-1234.77,0.00039178,120]
[339834097,1728052303689,-500.0,0.00039178,120]
[339834098,1728052303698,-7513.51,0.00039178,120]
[339834099,1728052303708,-1456.1,0.00039178,120]
[339834100,1728052303717,-500.0,0.00039178,120]
[339834101,1728052303727,-500.0,0.00039178,120]
[339834102,1728052303737,-509.31094057,0.00039178,120]
[339834103,1728052303746,-950.52,0.00039178,120]
[339834104,1728052303757,-1323.19,0.00039178,120]
[339834105,1728052303767,-500.0,0.00039178,120]
[339834106,1728052303776,-517.9849231,0.00039178,120]
[339834107,1728052303785,-1491.4,0.00039178,120]
[339834108,1728052303795,-500.0,0.00039178,120]
[339834109,1728052303805,-500.0,0.00039178,120]
[339834110,1728052303815,-511.9,0.00039178,120]
[339834111,1728052303824,-500.0,0.00039178,120]
[339834112,1728052303833,-500.0,0.00039178,120]
[339834113,1728052303843,-500.0,0.00039178,120]
[339834114,1728052303852,-500.0,0.00039178,120]
[339834115,1728052303862,-500.0,0.00039178,120]
[339834116,1728052303872,-1484.53,0.00039178,120]
[339834117,1728052303881,-939.24,0.00039178,120]
[339834118,1728052303891,-500.0,0.00039178,120]
[339834119,1728052303901,-2473.72,0.00039178,120]
[339834120,1728052303910,-500.0,0.00039178,120]
[339834121,1728052303919,-500.0,0.00039178,120]
[339834122,1728052303929,-500.0,0.00039178,120]
[339834123,1728052303938,-578.69,0.00039178,120]
[339834124,1728052303948,-500.0,0.00039178,120]
[339834125,1728052303958,-576.71,0.00039178,120]
[339834126,1728052303967,-782.01,0.00039178,120]
[339834127,1728052303977,-500.0,0.00039178,120]
[339834128,1728052303987,-500.0,0.00039178,120]
[339834129,1728052303997,-500.0,0.00039178,120]
[339834130,1728052304007,-500.0,0.00039178,120]
[339834131,1728052304016,-500.0,0.00039178,120]
[339834132,1728052304026,-500.0,0.00039178,120]
[339834133,1728052304035,-3591.16,0.00039178,120]
[339834134,1728052304044,-500.0,0.00039178,120]
[339834135,1728052304053,-500.0,0.00039178,120]
[339834136,1728052304063,-500.0,0.00039178,120]
[339834137,1728052304072,-500.0,0.00039178,120]
[339834138,1728052304082,-500.0,0.00039178,120]
[339834139,1728052304091,-500.0,0.00039178,120]
[339834140,1728052304100,-3218.69,0.00039178,120]
[339834141,1728052304109,-500.0,0.00039178,120]
[339834142,1728052304118,-500.0,0.00039178,120]
[339834143,1728052304128,-500.0,0.00039178,120]
[339834144,1728052304138,-500.0,0.00039178,120]
[339834145,1728052304147,-970.53,0.00039178,120]
[339834146,1728052304157,-964.0,0.00039178,120]
[339834147,1728052304166,-500.0,0.00039178,120]
[339834148,1728052304175,-623.3,0.00039178,120]
[339834149,1728052304184,-500.0,0.00039178,120]
[339834150,1728052304194,-500.0,0.00039178,120]
[339834151,1728052304204,-770.71,0.00039178,120]
[339834152,1728052304213,-1335.89,0.00039178,120]
[339834153,1728052304222,-1460.22,0.00039178,120]
[339834154,1728052304233,-500.0,0.00039178,120]
[339834155,1728052304242,-500.0,0.00039178,120]
[339834156,1728052304254,-1654.84,0.00039178,120]
[339834157,1728052304263,-4976.51,0.00039178,120]
[339834158,1728052304272,-250.78,0.00039178,120]
[339834159,1728052304283,-500.0,0.00039178,120]
[339834160,1728052304294,-500.0,0.00039178,120]
[339834161,1728052304305,-932.62,0.00039178,120]
[339834162,1728052304314,-733.59,0.00039178,120]
[339834163,1728052304324,-500.0,0.00039178,120]
[339834164,1728052304335,-11036.81,0.00039178,120]
[339834165,1728052304344,-500.0,0.00039178,120]
[339834166,1728052304355,-1867.11,0.00039178,120]
[339834167,1728052304365,-500.0,0.00039178,120]
[339834168,1728052304375,-500.0,0.00039178,120]
[339834169,1728052304384,-500.0,0.00039178,120]
[339834170,1728052304394,-2395.29,0.00039178,120]
[339834171,1728052304404,-500.0,0.00039178,120]
[339834172,1728052304414,-1311.12,0.00039178,120]
[339834173,1728052304423,-553.51308683,0.00039178,120]
[339834174,1728052304433,-500.0,0.00039178,120]
[339834175,1728052304443,-538.86,0.00039178,120]
[339834176,1728052304452,-1321.64,0.00039178,120]
[339834177,1728052304461,-500.0,0.00039178,120]
[339834178,1728052304471,-500.0,0.00039178,120]
[339834179,1728052304480,-500.0,0.00039178,120]
[339834180,1728052304489,-500.0,0.00039178,120]
[339834181,1728052304500,-500.0,0.00039178,120]
[339834182,1728052304509,-686.82,0.00039178,120]
[339834183,1728052304519,-1288.59,0.00039178,120]
[339834184,1728052304528,-500.0,0.00039178,120]
[339834185,1728052304537,-500.0,0.00039178,120]
[339834186,1728052304547,-500.0,0.00039178,120]
[339834187,1728052304556,-1800.34,0.00039178,120]
[339834188,1728052304564,-500.0,0.00039178,120]
[339834189,1728052304574,-500.0,0.00039178,120]
[339834190,1728052304586,-845.07,0.00039178,120]
[339834191,1728052304596,-500.0,0.00039178,120]
[339834192,1728052304606,-500.0,0.00039178,120]
[339834193,1728052304616,-6995.81,0.00039178,120]
[339834194,1728052304626,-500.0,0.00039178,120]
[339834195,1728052304637,-1469.35,0.00039178,120]
[339834196,1728052304646,-1052.81,0.00039178,120]
[339834197,1728052304656,-500.0,0.00039178,120]
[339834198,1728052304665,-500.0,0.00039178,120]
[339834199,1728052304675,-1253.47,0.00039178,120]
[339834200,1728052304685,-500.0,0.00039178,120]
[339834201,1728052304694,-213.19679304,0.00039178,120]
[339834202,1728052304703,-500.0,0.00039178,120]
[339834203,1728052304713,-500.0,0.00039178,120]
[339834204,1728052304722,-500.0,0.00039178,120]
[339834205,1728052304732,-500.0,0.00039178,120]
[339834206,1728052304741,-500.34856656,0.00039178,120]
[339834207,1728052304752,-500.0,0.00039178,120]
[339834208,1728052304762,-500.0,0.00039178,120]
[339834209,1728052304770,-500.0,0.00039178,120]
[339834210,1728052304780,-507.47,0.00039178,120]
[339834211,1728052304789,-500.0,0.00039178,120]
[339834212,1728052304804,-500.0,0.00039178,120]
[339834213,1728052304818,-2611.3,0.00039178,120]
[339834214,1728052304827,-500.0,0.00039178,120]
[339834215,1728052304836,-604.27,0.00039178,120]
[339834216,1728052304846,-500.0,0.00039178,120]
[339834217,1728052304855,-500.0,0.00039178,120]
[339834218,1728052304865,-2230.01,0.00039178,120]
[339834219,1728052304874,-500.0,0.00039178,120]
[339834220,1728052304883,-646.77,0.00039178,120]
[339834221,1728052304893,-500.0,0.00039178,120]
[339834222,1728052304902,-500.0,0.00039178,120]
[339834223,1728052304911,-500.0,0.00039178,120]
[339834224,1728052304921,-500.0,0.00039178,120]
[339834225,1728052304931,-500.0,0.00039178,120]
[339834226,1728052304940,-500.0,0.00039178,120]
[339834227,1728052304950,-500.0,0.00039178,120]
[339834228,1728052304959,-514.91,0.00039178,120]
[339834229,1728052304968,-500.0,0.00039178,120]
[339834230,1728052304979,-500.0,0.00039178,120]
[339834231,1728052304990,-1404.49,0.00039178,120]
[339834232,1728052305001,-500.0,0.00039178,120]
[339834233,1728052305010,-500.0,0.00039178,120]
[339834234,1728052305020,-500.0,0.00039178,120]
[339834235,1728052305029,-606.88,0.00039178,120]
[339834236,1728052305038,-1303.53,0.00039178,120]
[339834237,1728052305048,-500.0,0.00039178,120]
[339834238,1728052305057,-500.0,0.00039178,120]
[339834239,1728052305066,-500.0,0.00039178,120]